fUST/lending_fUST_20251110
["ID","MTS","AMOUNT","RATE_DAILY","PERIOD"]
[393543708,1762787433970,-16263.8109204,0.000248,2]
[393543709,1762787433979,-13290.45899966,0.00024812,2]
[393543710,1762787433988,-2282.15964872,0.00024819,2]
[393543711,1762787433998,-550.0,0.00024822,2]
[393543712,1762787434008,-500.0,0.00024873,2]
[393543713,1762787434018,-500.0,0.00024873,2]
[393543714,1762787434027,-500.0,0.00024873,2]
[393543715,1762787434038,-500.0,0.00024873,2]
[393543716,1762787434047,-500.0,0.00024873,2]
[393543717,1762787434057,-500.0,0.00024873,2]
[393543718,1762787434066,-550.0,0.00024877,2]
[393543719,1762787434075,-500.0,0.00024899,2]
[393543720,1762787434085,-190.46769985,0.00024899,2]
[393543721,1762787434094,-491443.46062194,0.000249,2]
[393543736,1762787438631,-160.0,0.00022031,2]
[393543737,1762787438641,-881.44,0.00023,2]
[393543738,1762787438651,-881.44,0.000231,2]
[393543739,1762787438661,-881.44,0.000231,2]
[393543740,1762787438671,-881.44,0.000232,2]
[393543741,1762787438681,-881.44,0.000232,2]
[393543742,1762787438691,-881.44,0.000232,2]
[393543743,1762787438701,-881.44,0.000233,2]
[393543744,1762787438710,-881.44,0.000233,2]
[393543745,1762787438720,-881.44,0.000234,2]
[393543746,1762787438729,-881.44,0.000234,2]
[393543747,1762787438739,-881.44,0.000235,2]
[393543748,1762787438749,-881.44,0.000235,2]
[393543749,1762787438758,-881.44,0.000236,2]
[393543751,1762787438768,-881.44,0.000236,2]
[393543753,1762787438777,-881.44,0.000237,2]
[393543755,1762787438789,-164867.23266706,0.000249,2]
[393543757,1762787438799,-2402.92547108,0.000249,2]
[393543759,1762787438809,-852.52148721,0.00024912,2]
[393543761,1762787438819,-550.0,0.00024932,2]
[393543763,1762787438830,-500.0,0.00024973,2]
[393543765,1762787438839,-500.0,0.00024973,2]
[393543767,1762787438849,-500.0,0.00024973,2]
[393543769,1762787438859,-550.0,0.00024987,2]
[393543771,1762787438869,-500.0,0.00024989,2]
[393543772,1762787438880,-500.0,0.00024989,2]
[393543773,1762787438890,-500.0,0.00024989,2]
[393543774,1762787438899,-500.0,0.00024989,2]
[393543775,1762787438909,-500.0,0.00024989,2]
[393543776,1762787438918,-500.0,0.00024989,2]
[393543777,1762787438928,-500.0,0.00024989,2]
[393543778,1762787438938,-500.0,0.00024989,2]
[393543779,1762787438949,-500.0,0.00024989,2]
[393543780,1762787438959,-500.0,0.00024989,2]
[393543781,1762787438970,-500.0,0.00024989,2]
[393543782,1762787438980,-500.0,0.00024989,2]
[393543783,1762787438991,-500.0,0.00024989,2]
[393543784,1762787439001,-500.0,0.00024989,2]
[393543785,1762787439011,-500.0,0.00024989,2]
[393543786,1762787439021,-500.0,0.00024989,2]
[393543787,1762787439031,-500.0,0.00024989,2]
[393543788,1762787439045,-500.0,0.00024989,2]
[393543789,1762787439055,-500.0,0.00024989,2]
[393543790,1762787439066,-500.0,0.00024989,2]
[393543791,1762787439077,-500.0,0.00024989,2]
[393543792,1762787439087,-500.0,0.00024989,2]
[393543793,1762787439098,-161.96507139,0.00024989,2]
[393543794,1762787439108,-1079.90892815,0.00025,2]
[393543795,1762787439119,-2660.91347309,0.00025,2]
[393543796,1762787439129,-21141.15436941,0.00025,2]
[393543797,1762787439139,-10364.0,0.00025,2]
[393543798,1762787439150,-667.50947342,0.00025,2]
[393543799,1762787439160,-600.0,0.00025,2]
[393543800,1762787439177,-215406.24114645,0.00025,2]
[393543801,1762787439187,-407.48926752,0.00025,2]
[393543802,1762787439198,-51971.13895526,0.00025,5]
[393543803,1762787439208,-1000.0,0.00025,14]
[393543804,1762787439218,-206.589211,0.00025,2]
[393543805,1762787439310,-360.0,0.00025017,2]
[393543806,1762787439320,-550.0,0.00025042,2]
[393543807,1762787439331,-752.88,0.00025069,2]
[393543808,1762787439342,-2282.15964872,0.00025094,2]
[393543809,1762787439353,-550.0,0.00025096,2]
[393543810,1762787439364,-550.0,0.00025151,2]
[393543811,1762787439375,-575.62965394,0.000252,5]
[393543812,1762787439386,-250.0,0.00025205,2]
[393543813,1762787439396,-550.0,0.00025206,2]
[393543814,1762787439407,-550.0,0.00025261,2]
[393543815,1762787439417,-550.0,0.00025316,2]
[393543816,1762787439434,-176.0,0.0002537,14]
[393543817,1762787439449,-2282.15964872,0.0002537,2]
[393543818,1762787439460,-550.0,0.0002537,2]
[393543819,1762787439470,-1000.0,0.00025421,2]
[393543820,1762787439480,-734.22771344,0.00025421,2]
[393543821,1762787439491,-1000.0,0.00025421,2]
[393543822,1762787439502,-587.49785149,0.00025421,2]
[393543823,1762787439512,-1000.0,0.00025421,2]
[393543824,1762787439523,-550.0,0.00025425,2]
[393543825,1762787439533,-900.0,0.00025469,3]
[393543826,1762787439546,-550.0,0.0002548,2]
[393543827,1762787439557,-220.0,0.000255,3]
[393543828,1762787439569,-1000.0,0.000255,2]
[393543829,1762787439579,-384.491085,0.00025506,2]
[393543830,1762787439590,-1000.0,0.00025521,2]
[393543831,1762787439600,-1006.96982044,0.00025521,2]
[393543832,1762787439610,-550.0,0.00025535,2]
[393543833,1762787439620,-460.0,0.00025565,2]
[393543834,1762787439630,-550.0,0.0002559,2]
[393543835,1762787439639,-550.0,0.00025644,2]
[393543836,1762787439649,-2284.44180836,0.00025645,2]
[393543837,1762787439658,-550.0,0.00025699,2]
[393543838,1762787439667,-350.0,0.00025753,2]
[393543839,1762787439677,-550.0,0.00025754,2]
[393543840,1762787439688,-229.32,0.000258,14]
[393543841,1762787439698,-550.0,0.00025809,2]
[393543842,1762787439709,-550.0,0.00025863,2]
[393543843,1762787439722,-5000.0,0.00025876,2]
[393543844,1762787439737,-151.01,0.000259,7]
[393543845,1762787439748,-570.24164252,0.00025918,2]
[393543846,1762787439758,-1500.0,0.00025968,2]
[393543847,1762787439769,-1500.0,0.00025968,2]
[393543848,1762787439779,-1500.0,0.00025968,2]
[393543849,1762787439790,-161.0,0.00026,5]
[393543850,1762787439799,-6126.04,0.00026,7]
[393543851,1762787439809,-172.958,0.00026021,2]
[393543852,1762787439820,-290.72992948,0.00026044,2]
[393543853,1762787439831,-1500.0,0.00026068,2]
[393543854,1762787439841,-560.0,0.00026113,2]
[393543855,1762787439851,-384.491085,0.00026161,3]
[393543856,1762787439861,-1505.75,0.00026263,2]
[393543857,1762787439871,-384.491085,0.00026265,2]
[393543858,1762787439881,-450.0,0.00026301,2]
[393543859,1762787439891,-2000.0,0.00026516,2]
[393543860,1762787439901,-896.99659791,0.00026516,2]
[393543861,1762787439912,-2000.0,0.00026516,2]
[393543862,1762787439922,-200.0,0.0002654,14]
[393543863,1762787439932,-2000.0,0.00026616,2]
[393543864,1762787439942,-660.0,0.00026661,2]
[393543865,1762787439952,-377.327143,0.00026676,2]
[393543866,1762787439962,-171.94576569,0.00026745,2]
[393543867,1762787439972,-254.99720792,0.00026745,2]
[393543868,1762787439982,-339.78508042,0.00026771,2]
[393543869,1762787439991,-550.0,0.00026849,2]
[393543870,1762787440001,-864.0,0.00026904,30]
[393543871,1762787440011,-500.42734512,0.00027,2]
[393543872,1762787440022,-175.0,0.00027,7]
[393543873,1762787440031,-2500.0,0.00027064,2]
[393543874,1762787440042,-2500.0,0.00027064,2]
[393543875,1762787440052,-254.99720792,0.00027067,17]
[393543876,1762787440062,-1011.8122637,0.00027123,3]
[393543877,1762787440072,-1890.41018056,0.00027164,2]
[393543878,1762787440082,-171.94576569,0.00027196,23]
[393543879,1762787440092,-760.0,0.00027209,2]
[393543880,1762787440102,-253.6892141,0.00027259,2]
[393543881,1762787440112,-331.80534282,0.00027349,2]
[393543882,1762787440122,-165.90267141,0.00027349,2]
[393543883,1762787440132,-254.99720792,0.00027389,32]
[393543884,1762787440143,-199.36229696,0.0002739,2]
[393543885,1762787440153,-151.0,0.00027397,2]
[393543886,1762787440163,-650.0,0.00027397,5]
[393543888,1762787440174,-500.0,0.00027397,5]
[393543889,1762787440183,-150.0,0.00027397,5]
[393543891,1762787440194,-150.0,0.00027397,5]
[393543893,1762787440204,-6741.78,0.000274,2]
[393543895,1762787440214,-151.0,0.00027452,2]
[393543896,1762787440224,-1544.999997,0.000275,2]
[393543897,1762787440234,-229.32,0.000275,14]
[393543898,1762787440244,-151.0,0.00027507,2]
[393543899,1762787440254,-2258.63,0.00027558,2]
[393543900,1762787440264,-237.61025263,0.00027561,2]
[393543901,1762787440274,-159.0,0.00027562,14]
[393543902,1762787440285,-3000.0,0.00027612,5]
[393543903,1762787440296,-3000.0,0.00027612,5]
[393543904,1762787440309,-384.491085,0.00027633,3]
[393543905,1762787440320,-384.491085,0.00027646,7]
[393543906,1762787440331,-171.94576569,0.00027646,45]
[393543907,1762787440341,-6126.04,0.000277,7]
[393543908,1762787440351,-151.01,0.000277,7]
[393543909,1762787440361,-254.99720792,0.00027711,48]
[393543911,1762787440371,-169.05292711,0.00027752,7]
[393543912,1762787440382,-860.0,0.00027757,2]
[393543913,1762787440392,-750.0,0.00027945,5]
[393543914,1762787440402,-1000.0,0.00027945,5]
[393543915,1762787440412,-250.0,0.00027945,5]
[393543916,1762787440422,-250.0,0.00027945,5]
[393543917,1762787440431,-10383.95423328,0.00028,5]
[393543918,1762787440442,-2153.05477411,0.00028,2]
[393543919,1762787440452,-254.99720792,0.00028032,63]
[393543920,1762787440462,-5000.0,0.00028043,2]
[393543921,1762787440472,-324.71134981,0.00028044,2]
[393543922,1762787440481,-171.94576569,0.00028097,66]
[393543924,1762787440491,-6741.78,0.000281,2]
[393543926,1762787440502,-3500.0,0.0002816,5]
[393543928,1762787440512,-3500.0,0.0002816,5]
[393543929,1762787440522,-960.0,0.00028305,2]
[393543930,1762787440532,-254.99720792,0.00028354,79]
[393543932,1762787440545,-1000.0,0.000284,2]
[393543933,1762787440555,-1000.0,0.000284,2]
[393543934,1762787440565,-1000.0,0.000284,2]
[393543935,1762787440575,-1000.0,0.000284,2]
[393543937,1762787440586,-1000.0,0.000284,2]
[393543939,1762787440598,-850.0,0.00028493,5]
[393543940,1762787440608,-1321.32736447,0.00028493,5]
[393543941,1762787440616,-350.0,0.00028493,5]
[393543943,1762787440627,-350.0,0.00028493,5]
[393543945,1762787440637,-171.94576569,0.00028547,88]
[393543946,1762787440647,-254.99720792,0.00028676,94]
[393543947,1762787440656,-467.82716454,0.00028708,5]
[393543948,1762787440666,-3559.76173097,0.00028708,5]
[393543949,1762787440676,-254.9972079,0.00028708,30]
[393543950,1762787440686,-171.94576567,0.00028708,30]
[393543951,1762787440697,-3011.5,0.00028756,2]
[393543952,1762787440707,-4000.0,0.0002876,5]
[393543953,1762787440717,-17434.78336564,0.0002876,2]
[393543955,1762787440812,-175.0,0.00028767,14]
[393543956,1762787440823,-6741.78,0.000288,2]
[393543957,1762787440833,-1060.0,0.00028853,2]
[393543958,1762787440842,-12500.0,0.00028908,10]
[393543959,1762787440852,-5514.69749593,0.00028917,10]
[393543961,1762787442856,-6985.30250407,0.00028917,10]
[393543962,1762787442866,-12500.0,0.00028926,10]
[393543963,1762787442877,-12500.0,0.00028934,10]
[393543964,1762787442887,-12500.0,0.00028943,10]
[393543965,1762787442896,-12500.0,0.00028952,10]
[393543966,1762787442907,-12500.0,0.00028961,10]
[393543967,1762787442916,-12500.0,0.0002897,10]
[393543968,1762787442926,-9792.31857293,0.00028978,10]
[393543969,1762787443066,-1252.15356556,0.00028978,10]
[393543970,1762787443077,-1455.52786151,0.00028978,10]
[393543971,1762787443087,-12500.0,0.00028987,10]
[393543972,1762787443097,-5723.23,0.00028989,2]
[393543973,1762787443107,-12500.0,0.00028996,10]
[393543974,1762787443118,-885.1484739,0.00029,2]
[393543975,1762787443128,-504.79394925,0.00029,7]
[393543976,1762787443137,-150.0,0.00029,2]
[393543977,1762787443147,-12500.0,0.00029005,10]
[393543979,1762787443157,-12500.0,0.00029014,10]
[393543981,1762787443166,-322.66,0.00029035,30]
[393543983,1762787443176,-950.0,0.00029041,5]
[393543985,1762787443185,-450.0,0.00029041,5]
[393543987,1762787443195,-450.0,0.00029041,5]
[393543989,1762787443204,-384.491085,0.00029104,3]
[393543991,1762787443213,-2029.1926102,0.0002939,5]
[393543993,1762787443223,-229.32,0.000294,14]
[393543995,1762787443231,-1160.0,0.00029401,2]
[393543996,1762787443240,-6741.78,0.000295,2]
[393544000,1762787443340,-179.83814567,0.00029583,3]
[393544001,1762787443351,-1050.0,0.00029589,5]
[393544003,1762787443361,-550.0,0.00029589,5]
[393544004,1762787443370,-550.0,0.00029589,5]
[393544005,1762787443380,-1000.0,0.00029595,30]
[393544006,1762787443392,-6126.04,0.000296,7]
[393544007,1762787443401,-171.0,0.00029753,14]
[393544008,1762787443412,-10010.31118649,0.000298,2]
[393544009,1762787443421,-151.01,0.000298,7]
[393544010,1762787443430,-1260.0,0.00029949,2]
[393544011,1762787443440,-3764.38,0.00029954,2]
[393544012,1762787443450,-7674.57110809,0.0003,5]
[393544013,1762787443460,-3507.05571922,0.0003,2]
[393544014,1762787443470,-357.47919406,0.0003,2]
[393544015,1762787443479,-165.46,0.0003,5]
[393544016,1762787443489,-268.52220759,0.0003,2]
[393544017,1762787443498,-900.0,0.0003,2]
[393544018,1762787443508,-9570.43209552,0.0003,2]
[393544019,1762787443518,-667.36,0.0003,2]
[393544020,1762787443527,-1196.0,0.0003,5]
[393544021,1762787443536,-1000.0,0.0003,14]
[393544023,1762787443550,-384.491085,0.00030027,7]
[393544025,1762787443559,-358.69277014,0.00030044,2]
[393544026,1762787443570,-286.60524916,0.0003013,2]
[393544027,1762787443580,-2181.86276353,0.0003013,5]
[393544028,1762787443589,-1150.0,0.00030137,5]
[393544029,1762787443599,-300.0,0.00030137,5]
[393544030,1762787443608,-650.0,0.00030137,5]
[393544031,1762787443618,-650.0,0.00030137,5]
[393544032,1762787443627,-6741.78,0.000302,2]
[393544033,1762787443637,-176.0,0.00030205,14]
[393544034,1762787443647,-673.1942596,0.0003022,2]
[393544035,1762787443656,-505.85866726,0.00030242,7]
[393544036,1762787443665,-500.0,0.0003034,7]
[393544037,1762787443675,-645.32,0.00030418,30]
[393544038,1762787443685,-906.2529091,0.00030497,2]
[393544039,1762787443698,-453.7470909,0.00030497,2]
[393544040,1762787443707,-500.0,0.00030586,7]
[393544041,1762787443717,-1237.43356916,0.00030685,5]
[393544042,1762787443726,-600.0,0.00030685,5]
[393544043,1762787443736,-750.0,0.00030685,5]
[393544045,1762787443745,-641.23932969,0.00030685,5]
[393544046,1762787443755,-334.1572911,0.0003088,5]
[393544047,1762787443764,-5993.42271915,0.000309,2]
[393544048,1762787443800,-881.44,0.000237,2]
[393544049,1762787443810,-881.44,0.000237,2]
[393544050,1762787443819,-881.44,0.000238,2]
[393544051,1762787443828,-664.86,0.000238,2]
[393544052,1762787443840,-216.58,0.000238,2]
[393544053,1762787443849,-881.44,0.000239,2]
[393544054,1762787443859,-484.11,0.0002489,10]
[393544055,1762787443868,-748.35728085,0.000309,2]
[393544056,1762787443878,-430.21035599,0.00030939,7]
[393544057,1762787443889,-69.78964401,0.00030939,7]
[393544058,1762787443899,-304.71706588,0.0003099,2]
[393544059,1762787443907,-9.94007559,0.0003101,3]
[393544060,1762787443918,-71232.23965298,0.0003101,3]
[393544133,1762787448201,-881.44,0.000239,2]
[393544134,1762787448212,-881.44,0.00024,2]
[393544135,1762787448222,-881.44,0.00024,2]
[393544136,1762787448232,-881.44,0.000241,2]
[393544137,1762787448242,-881.44,0.000241,2]
[393544138,1762787448252,-881.44,0.000241,2]
[393544139,1762787448262,-881.44,0.000242,2]
[393544140,1762787448272,-881.44,0.000242,2]
[393544141,1762787448282,-160.0,0.00029975,5]
[393544142,1762787448295,-3394.90278693,0.0003101,3]
[393544143,1762787448308,-1460.0,0.00031045,2]
[393544144,1762787448320,-160.0,0.00031057,6]
[393544145,1762787448331,-4893.57653707,0.0003112,2]
[393544146,1762787448345,-25106.42346293,0.0003112,2]
[393544147,1762787448359,-4517.25,0.00031152,2]
[393544148,1762787448370,-229.32,0.000312,14]
[393544149,1762787448380,-602.25958883,0.00031233,5]
[393544150,1762787448393,-850.0,0.00031233,5]
[393544151,1762787448404,-1560.0,0.00031593,2]
[393544152,1762787448416,-6741.78,0.000316,2]
[393544153,1762787448426,-293.85068442,0.00031667,7]
[393544154,1762787448437,-950.0,0.00031781,5]
[393544155,1762787448448,-967.98,0.00031801,30]
[393544156,1762787448459,-43742.15727523,0.000319,2]
[393544157,1762787448468,-1933.21399255,0.00031999,2]
[393544158,1762787448478,-3431.90339176,0.00032,5]
[393544159,1762787448488,-340.15933236,0.00032,2]
[393544160,1762787448498,-1000.0,0.00032,32]
[393544161,1762787448508,-399.99776637,0.00032,3]
[393544162,1762787448518,-151.01,0.00032,7]
[393544163,1762787448527,-392.67419047,0.00032044,2]
[393544164,1762787448537,-160.0,0.0003214,7]
[393544165,1762787448549,-1660.0,0.00032141,2]
[393544166,1762787448559,-1050.0,0.00032329,5]
[393544167,1762787448568,-5270.13,0.0003235,2]
[393544168,1762787448578,-384.491085,0.00032408,7]
[393544169,1762787448588,-1000.0,0.00032554,30]
[393544170,1762787448598,-244.0,0.00032554,30]
[393544171,1762787448610,-1760.0,0.00032689,2]
[393544172,1762787448622,-63871.81534453,0.000327,2]
[393544173,1762787448632,-757.0,0.000327,2]
[393544174,1762787448641,-1011.28111434,0.000328,14]
[393544175,1762787448651,-151.0,0.000328,14]
[393544176,1762787448660,-157.58130014,0.000328,14]
[393544177,1762787448670,-800.0,0.00032812,2]
[393544178,1762787448679,-500.0,0.00032876,2]
[393544179,1762787448689,-1000.53950144,0.00032876,2]
[393544180,1762787448699,-1000.0,0.00032876,2]
[393544181,1762787448709,-400.25596639,0.00032876,2]
[393544182,1762787448796,-411.77150003,0.00032876,2]
[393544183,1762787448810,-405.58273575,0.00032876,2]
[393544184,1762787448819,-1000.0,0.00032876,2]
[393544185,1762787448829,-500.0,0.00032877,2]
[393544186,1762787448839,-150.0,0.00032877,60]
[393544187,1762787448848,-209.26710869,0.00032877,5]
[393544188,1762787448858,-4341.70724218,0.00032877,120]
[393544189,1762787448868,-1150.0,0.00032877,5]
[393544190,1762787448877,-500.0,0.00032877,30]
[393544191,1762787448887,-500.0,0.00032877,7]
[393544192,1762787448896,-500.0,0.00032877,7]
[393544193,1762787448905,-500.0,0.00032877,7]
[393544194,1762787448914,-601.35153414,0.00032877,7]
[393544195,1762787448923,-233.48350379,0.00032877,7]
[393544196,1762787448933,-500.0,0.00032932,30]
[393544197,1762787448942,-500.0,0.00032987,30]
[393544198,1762787448953,-154.09778543,0.00033,3]
[393544199,1762787448962,-1673.61488495,0.00033,2]
[393544200,1762787448971,-88468.64879728,0.00033,2]
[393544201,1762787448981,-155.32337182,0.00033,2]
[393544202,1762787448991,-1087.68623286,0.00033,2]
[393544203,1762787449000,-55691.96587505,0.00033,2]
[393544204,1762787449010,-1030.04,0.00033,2]
[393544205,1762787449019,-203.75994024,0.00033,2]
[393544206,1762787449028,-156.0,0.00033041,14]
[393544207,1762787449037,-500.0,0.00033041,30]
[393544208,1762787449048,-500.0,0.00033096,30]
[393544209,1762787449059,-229.32,0.000331,30]
[393544210,1762787449068,-199.0,0.0003315,14]
[393544211,1762787449078,-257.0996606,0.00033151,30]
[393544212,1762787449087,-377.327143,0.00033165,2]
[393544213,1762787449097,-1290.64,0.00033183,30]
[393544214,1762787449106,-2208.89704022,0.000332,117]
[393544215,1762787449117,-2208.89704018,0.000332,117]
[393544216,1762787449128,-2208.89704018,0.000332,117]
[393544217,1762787449139,-1860.0,0.00033236,2]
[393544218,1762787449149,-209.42419,0.000334,120]
[393544219,1762787449159,-500.0,0.00033424,2]
[393544220,1762787449169,-1000.0,0.00033424,2]
[393544221,1762787449178,-1000.0,0.00033424,2]
[393544222,1762787449188,-653.72090611,0.00033425,5]
[393544223,1762787449197,-800.0,0.00033481,2]
[393544224,1762787449207,-800.0,0.00033509,2]
[393544225,1762787449217,-6023.0,0.00033548,2]
[393544226,1762787449226,-384.491085,0.000336,30]
[393544227,1762787449236,-800.0,0.00033662,2]
[393544228,1762787449245,-199.0,0.00033698,15]
[393544229,1762787449255,-1789.34676221,0.00033784,2]
[393544230,1762787449265,-250.84650637,0.000338,120]
[393544231,1762787449274,-180.69232489,0.000338,120]
[393544232,1762787449284,-151.01,0.000338,7]
[393544233,1762787449295,-800.0,0.00033846,2]
[393544234,1762787449307,-297.8851395,0.00033892,30]
[393544235,1762787449320,-800.0,0.00033921,2]
[393544236,1762787449330,-800.0,0.00033955,2]
[393544237,1762787449339,-500.0,0.00033972,2]
[393544238,1762787449348,-1000.0,0.00033972,2]
[393544239,1762787449358,-1000.0,0.00033972,2]
[393544240,1762787449368,-1000.0,0.00034,120]
[393544241,1762787449377,-200.0,0.00034,120]
[393544242,1762787449388,-399.99776637,0.00034,30]
[393544243,1762787449398,-426.6556108,0.00034044,120]
[393544244,1762787449408,-384.491085,0.00034044,30]
[393544245,1762787449417,-221.2700264,0.0003413,30]
[393544246,1762787449427,-191.0907821,0.0003413,30]
[393544247,1762787449436,-191.0907821,0.0003413,30]
[393544248,1762787449446,-191.0907821,0.0003413,30]
[393544249,1762787449456,-191.0907821,0.0003413,30]
[393544250,1762787449466,-191.0907821,0.0003413,30]
[393544251,1762787449475,-800.0,0.00034154,2]
[393544252,1762787449485,-199.0,0.00034246,16]
[393544253,1762787449494,-800.0,0.00034247,2]
[393544254,1762787449504,-202.0,0.0003426,38]
[393544255,1762787449513,-800.0,0.00034324,2]
[393544256,1762787449523,-384.491085,0.00034489,30]
[393544257,1762787449533,-500.0,0.0003452,2]
[393544258,1762787449542,-1000.0,0.0003452,2]
[393544259,1762787449555,-1000.0,0.0003452,2]
[393544260,1762787449563,-150.0,0.00034545,2]
[393544261,1762787449572,-1613.3,0.00034566,30]
[393544262,1762787449582,-193.4911579,0.00034623,30]
[393544263,1762787449592,-191.0907821,0.00034623,30]
[393544264,1762787449601,-191.0907821,0.00034623,30]
[393544265,1762787449611,-191.0907821,0.00034623,30]
[393544266,1762787449620,-191.0907821,0.00034623,30]
[393544267,1762787449629,-191.0907821,0.00034623,30]
[393544268,1762787449638,-191.0907821,0.00034623,30]
[393544269,1762787449648,-191.0907821,0.00034623,30]
[393544270,1762787449657,-169.05292711,0.0003469,7]
[393544271,1762787449668,-6775.88,0.00034747,2]
[393544272,1762787449677,-384.491085,0.0003479,7]
[393544273,1762787449687,-199.0,0.00034794,17]
[393544274,1762787449697,-250.84650637,0.000348,120]
[393544275,1762787449706,-180.69232489,0.000348,120]
[393544276,1762787449715,-300.0,0.000349,3]
[393544277,1762787449724,-384.491085,0.000349,60]
[393544278,1762787449791,-229.32,0.000349,30]
[393544279,1762787449803,-662.5,0.00034925,30]
[393544280,1762787449812,-384.491085,0.00034933,30]
[393544281,1762787449823,-191.0907821,0.00034952,30]
[393544282,1762787449833,-191.0907821,0.00034952,30]
[393544283,1762787449842,-191.0907821,0.00034952,30]
[393544284,1762787449852,-191.0907821,0.00034952,30]
[393544285,1762787449862,-1338.0,0.00034961,4]
[393544286,1762787449872,-657.64803635,0.00035,2]
[393544287,1762787449881,-256.76,0.00035,5]
[393544288,1762787449891,-500.0,0.00035068,10]
[393544289,1762787449900,-500.0,0.00035068,10]
[393544290,1762787449910,-500.0,0.00035068,10]
[393544291,1762787449920,-500.0,0.00035068,10]
[393544292,1762787449929,-500.0,0.00035068,10]
[393544293,1762787449939,-500.0,0.00035068,2]
[393544294,1762787449948,-1000.0,0.00035068,2]
[393544295,1762787449958,-999.0,0.00035068,120]
[393544296,1762787449967,-1000.0,0.00035068,2]
[393544297,1762787449977,-273.28939205,0.00035093,2]
[393544298,1762787449987,-200.0,0.000351,7]
[393544299,1762787449996,-351.50672241,0.00035151,2]
[393544300,1762787450006,-384.491085,0.00035179,60]
[393544301,1762787450015,-800.0,0.00035213,2]
[393544302,1762787450025,-800.0,0.00035326,2]
[393544303,1762787450034,-199.0,0.00035342,18]
[393544304,1762787450046,-384.491085,0.00035378,30]
[393544305,1762787450057,-191.0907821,0.00035445,30]
[393544306,1762787450067,-191.0907821,0.00035445,30]
[393544307,1762787450076,-191.0907821,0.00035445,30]
[393544308,1762787450086,-191.0907821,0.00035445,30]
[393544309,1762787450096,-191.0907821,0.00035445,30]
[393544310,1762787450107,-191.0907821,0.00035445,30]
[393544311,1762787450117,-191.0907821,0.00035445,30]
[393544312,1762787450127,-191.0907821,0.00035445,30]
[393544313,1762787450137,-191.0907821,0.00035445,30]
[393544314,1762787450146,-191.0907821,0.00035445,30]
[393544315,1762787450156,-191.0907821,0.00035445,30]
[393544316,1762787450166,-191.0907821,0.00035445,30]
[393544317,1762787450176,-191.0907821,0.00035445,30]
[393544318,1762787450186,-191.0907821,0.00035445,30]
[393544319,1762787450196,-191.0907821,0.00035445,30]
[393544320,1762787450206,-384.491085,0.00035458,60]
[393544321,1762787450216,-153.0,0.00035479,30]
[393544322,1762787450230,-153.0,0.00035479,30]
[393544323,1762787450249,-153.0,0.00035479,30]
[393544324,1762787450269,-153.0,0.00035479,30]
[393544325,1762787450291,-153.0,0.00035479,30]
[393544326,1762787450314,-900.0,0.00035527,7]
[393544327,1762787450333,-162.8757457,0.00035536,30]
[393544328,1762787450354,-500.0,0.00035616,10]
[393544329,1762787450373,-500.0,0.00035616,2]
[393544330,1762787450392,-1000.0,0.00035616,2]
[393544331,1762787450411,-1000.0,0.00035616,2]
[393544332,1762787450429,-229.25668111,0.00035616,2]
[393544333,1762787450448,-384.491085,0.00035737,60]
[393544334,1762787450463,-191.0907821,0.00035774,30]
[393544335,1762787450482,-191.0907821,0.00035774,30]